bitfinex/quotes_ETHUSD_20240601
["timestamp","ask_amount","ask_price","bid_price","bid_amount"]
[1717239668008,2.64078,3786.8,3786.6,0.634]
[1717239668209,0.11579502,3786.7,3786.6,0.634]
[1717239668417,2.64078,3786.8,3786.6,0.634]
[1717239668731,0.11579502,3786.7,3786.6,0.634]
[1717239669135,2.64078,3786.8,3786.6,0.634]
[1717239669328,0.11579502,3786.7,3786.6,0.634]
[1717239669633,2.64078,3786.8,3786.6,0.634]
[1717239669799,0.11579502,3786.7,3786.6,0.634]
[1717239669996,2.64078,3786.8,3786.6,0.634]
[1717239670190,2.3379,3786.9,3785.9,2.4261]
[1717239670191,2.64093,3786.6,3785.9,2.4261]
[1717239670507,2.64093,3786.6,3786.5,0.634]
[1717239676094,2.64093,3786.6,3785.9,2.4261]
[1717239676240,2.64093,3786.6,3786.5,0.634]
[1717239679643,2.75661041,3786.6,3786.5,0.634]
[1717239685860,2.75661041,3786.6,3785.9,2.4261]
[1717239686071,2.75661041,3786.6,3786.5,0.634]
[1717239687972,2.75661041,3786.6,3785.9,2.4261]
[1717239688147,2.75661041,3786.6,3786.5,0.634]
[1717239691195,2.75661041,3786.6,3785.7,9.8481]
[1717239691411,2.75661041,3786.6,3786.5,0.634]
[1717239693606,2.64112,3786.3,3786.1,0.634]
[1717239693969,0.11565406,3786.2,3786.1,0.634]
[1717239694370,2.64112,3786.3,3786.1,0.634]
[1717239694564,0.11565406,3786.2,3786.1,0.634]
[1717239694980,2.64112,3786.3,3786.1,0.634]
[1717239695168,0.11565406,3786.2,3786.1,0.634]
[1717239695498,2.64112,3786.3,3786.1,0.634]
[1717239695703,0.11565406,3786.2,3786.1,0.634]
[1717239695898,2.64112,3786.3,3786.1,0.634]
[1717239696299,0.11565406,3786.2,3786.1,0.634]
[1717239696500,2.64112,3786.3,3786.1,0.634]
[1717239696707,0.11565406,3786.2,3786.1,0.634]
[1717239697002,2.64112,3786.3,3786.1,0.634]
[1717239697163,0.11565406,3786.2,3786.1,0.634]
[1717239697781,2.64112,3786.3,3786.1,0.634]
[1717239697983,0.11565406,3786.2,3786.1,0.634]
[1717239698372,2.64112,3786.3,3786.1,0.634]
[1717239698573,0.11565406,3786.2,3786.1,0.634]
[1717239698984,2.64112,3786.3,3786.1,0.634]
[1717239699193,0.11565406,3786.2,3786.1,0.634]
[1717239699574,2.64112,3786.3,3786.1,0.634]
[1717239699766,0.11565406,3786.2,3786.1,0.634]
[1717239700479,2.64112,3786.3,3786.1,0.634]
[1717239700704,0.11565406,3786.2,3786.1,0.634]
[1717239700937,2.64112,3786.3,3786.1,0.634]
[1717239701083,0.11565406,3786.2,3786.1,0.634]
[1717239701278,2.64112,3786.3,3786.1,0.634]
[1717239701483,0.11565406,3786.2,3786.1,0.634]
[1717239701675,2.64112,3786.3,3786.1,0.634]
[1717239701885,0.11565406,3786.2,3786.1,0.634]
[1717239702123,2.64112,3786.3,3786.1,0.634]
[1717239702328,0.11565406,3786.2,3786.1,0.634]
[1717239702794,2.64112,3786.3,3786.1,0.634]
[1717239702993,0.11565406,3786.2,3786.1,0.634]
[1717239703401,2.64112,3786.3,3786.1,0.634]
[1717239703581,0.11565406,3786.2,3786.1,0.634]
[1717239703927,2.64112,3786.3,3786.1,0.634]
[1717239704138,0.11565406,3786.2,3786.1,0.634]
[1717239704345,2.64112,3786.3,3786.1,0.634]
[1717239704627,0.11565406,3786.2,3786.1,0.634]
[1717239704995,2.64112,3786.3,3786.1,0.634]
[1717239705196,0.11565406,3786.2,3786.1,0.634]
[1717239705527,2.64112,3786.3,3786.1,0.634]
[1717239705735,0.11565406,3786.2,3786.1,0.634]
[1717239705876,2.64112,3786.3,3786.1,0.634]
[1717239706081,0.11565406,3786.2,3786.1,0.634]
[1717239706306,2.64112,3786.3,3786.1,0.634]
[1717239706482,0.11565406,3786.2,3786.1,0.634]
[1717239706681,2.64112,3786.3,3786.1,0.634]
[1717239706882,0.11565406,3786.2,3786.1,0.634]
[1717239707082,2.64112,3786.3,3786.1,0.634]
[1717239707343,0.11565406,3786.2,3786.1,0.634]
[1717239707544,2.64112,3786.3,3786.1,0.634]
[1717239707831,0.11565406,3786.2,3786.1,0.634]
[1717239708187,2.64112,3786.3,3786.1,0.634]
[1717239708382,0.11565406,3786.2,3786.1,0.634]
[1717239708724,2.64112,3786.3,3786.1,0.634]
[1717239708887,0.11565406,3786.2,3786.1,0.634]
[1717239709086,2.64112,3786.3,3786.1,0.634]
[1717239709286,0.11560533,3786.2,3786.1,0.634]
[1717239709495,2.64112,3786.3,3786.1,0.634]
[1717239709699,0.11560533,3786.2,3786.1,0.634]
[1717239709883,2.64112,3786.3,3786.1,0.634]
[1717239710085,0.11560533,3786.2,3786.1,0.634]
[1717239710326,2.64112,3786.3,3786.1,0.634]
[1717239710531,0.11560533,3786.2,3786.1,0.634]
[1717239710692,2.64112,3786.3,3786.1,0.634]
[1717239710891,0.11560533,3786.2,3786.1,0.634]
[1717239711202,2.64112,3786.3,3786.1,0.634]
[1717239711405,0.11560533,3786.2,3786.1,0.634]
[1717239711805,2.64112,3786.3,3786.1,0.634]
[1717239712003,0.11560533,3786.2,3786.1,0.634]
[1717239712522,0.11560533,3786.2,3785.5,2.4181]
[1717239712716,2.64129,3786.1,3785.5,2.4181]
[1717239712917,2.75689443,3786.1,3786.0,0.634]
[1717239721167,2.75689443,3786.1,3785.5,2.4181]
[1717239721436,2.64154,3785.7,3785.2,7.43]
[1717239721612,2.64154,3785.7,3785.5,0.634]
[1717239722005,0.1156194,3785.6,3785.5,0.634]
[1717239725160,0.1156194,3785.6,3785.5,3.0815]
[1717239725460,3.0,3786.1,3785.6,2.4475]
[1717239725656,3.0,3786.1,3786.0,0.634]
[1717239727356,2.64122,3786.2,3786.1,2.3516]
[1717239731542,2.6342105,3786.2,3786.1,2.3516]
[1717239739655,2.74985483,3786.2,3786.1,2.3516]
[1717239742454,2.74985483,3786.2,3786.1,0.634]
[1717239744287,2.64131,3786.0,3785.9,0.634]
[1717239744579,5.75695252,3786.0,3785.9,0.634]
[1717239749374,5.75695252,3786.0,3785.2,7.43]
[1717239749574,2.6416,3785.6,3785.2,7.43]
[1717239749775,2.6416,3785.6,3785.5,0.634]
[1717239750559,2.6416,3785.6,3784.8,2.4301]
[1717239750776,2.6416,3785.6,3785.5,0.634]
[1717239752590,2.6416,3785.6,3784.5,2.4301]
[1717239752591,2.64191,3785.2,3784.5,2.4301]
[1717239752889,2.64191,3785.2,3785.1,0.634]
[1717239754498,2.64155,3785.7,3785.1,0.634]
[1717239754685,0.11527787,3785.2,3785.1,2.4301]
[1717239754879,3.0,3785.6,3785.1,3.0641]
[1717239755083,0.11510889,3785.2,3785.1,2.4301]
[1717239755390,0.11510889,3785.2,3785.1,3.0641]
[1717239755689,3.0,3785.6,3785.1,3.0641]
[1717239755868,0.11510889,3785.2,3785.1,2.4301]
[1717239756070,3.0,3785.6,3785.1,3.0641]
[1717239756282,0.11510889,3785.2,3785.1,2.4301]
[1717239756584,0.11510889,3785.2,3785.1,3.0641]
[1717239756787,3.0,3785.6,3785.1,3.0641]
[1717239757095,3.0,3785.6,3785.5,0.634]
[1717239759792,2.28250342,3786.7,3785.6,2.4301]
[1717239759953,2.28250342,3787.4,3786.6,0.634]
[1717239760155,3.0052,3787.6,3786.6,0.634]
[1717239760156,2.28250342,3787.5,3786.6,0.634]
[1717239760355,2.3712,3787.3,3786.4,0.634]
[1717239760557,0.5709835,3787.2,3786.4,0.634]
[1717239760865,0.58586869,3787.1,3786.4,0.634]
[1717239761067,2.64071,3786.9,3786.4,0.634]
[1717239761268,3.0,3786.8,3786.4,0.634]
[1717239761895,2.64083,3786.7,3786.4,0.634]
[1717239762102,3.0,3786.6,3786.4,0.634]
[1717239769611,0.11187717,3786.5,3786.4,0.634]
[1717239774377,0.11187717,3786.5,3786.4,3.1305]
[1717239776910,3.0,3787.1,3786.4,3.1305]
[1717239777116,3.0,3787.1,3786.4,2.4965]
[1717239777117,0.11203357,3786.5,3786.4,2.4965]
[1717239777291,3.0,3787.1,3786.4,3.1305]
[1717239777502,0.11203357,3786.5,3786.4,2.4965]
[1717239777701,3.0,3787.1,3786.4,3.1305]
[1717239778024,0.11203357,3786.5,3786.4,2.4965]
[1717239778236,3.0,3787.1,3786.4,3.1305]
[1717239778390,0.11203809,3787.0,3786.8,0.634]
[1717239795848,0.11203809,3787.0,3786.9,2.3299]
[1717239796049,3.0,3787.6,3786.9,2.3299]
[1717239796282,0.11236347,3787.5,3787.2,0.634]
[1717239796908,0.11236347,3787.5,3786.2,2.64115]
[1717239796909,0.11236347,3787.5,3787.4,0.634]
[1717239797106,0.11236347,3787.5,3786.6,2.64088]
[1717239797107,0.11236347,3787.5,3786.7,2.3299]
[1717239797310,4.91337,3787.8,3787.3,0.634]
[1717239797647,5.404707,3787.8,3787.3,0.634]
[1717239797813,0.11238808,3787.7,3787.3,0.634]
[1717239798145,2.6402,3787.6,3787.3,0.634]
[1717239798349,3.0,3787.5,3787.3,0.634]
[1717239798737,0.11242446,3787.4,3787.3,0.634]
[1717239800793,2.2733,3787.1,3786.5,7.43]
[1717239800989,5.2733,3787.1,3786.8,0.634]
[1717239801287,2.75304409,3787.0,3786.5,7.43]
[1717239801568,2.64075,3786.8,3786.7,0.634]
[1717239801769,5.64075,3786.8,3786.7,0.634]
[1717239802071,5.75317228,3786.8,3786.7,0.634]
[1717239818592,5.75317228,3786.8,3786.5,0.634]
[1717239818884,3.0,3786.7,3786.5,0.634]
[1717239819388,0.11232019,3786.6,3786.5,0.634]
[1717239820291,0.11232019,3786.6,3786.4,0.634]
[1717239821251,2.64096,3786.5,3786.4,0.634]
[1717239821456,2.64096,3786.5,3785.9,7.43]
[1717239821457,5.75317831,3786.5,3785.9,7.43]
[1717239821779,5.75317831,3786.5,3786.3,0.634]
[1717239821780,2.75317831,3786.5,3786.3,0.634]
[1717239822698,2.75317831,3786.5,3785.8,2.3299]
[1717239822871,2.75317831,3786.5,3786.2,0.634]
[1717239823072,3.56181614,3786.5,3785.8,2.3299]
[1717239823271,2.6411,3786.3,3786.2,0.634]
[1717239823786,5.75320573,3786.3,3786.2,0.634]
[1717239824365,5.75320573,3786.3,3785.6,2.4417]
[1717239824724,3.0,3786.2,3786.0,0.634]
[1717239825061,0.11201266,3786.1,3786.0,0.634]
[1717239825581,0.11201266,3786.1,3785.6,2.4417]
[1717239825783,0.11201266,3786.1,3786.0,0.634]
[1717239827797,0.11201266,3786.1,3785.1,10.0719]
[1717239828101,0.11201266,3786.1,3785.9,0.634]
[1717239831104,0.11201266,3786.1,3785.3,2.3042]
[1717239831271,0.11201266,3786.1,3785.9,0.634]
[1717239831603,2.64131,3786.0,3785.3,2.3042]
[1717239831805,0.11199782,3785.9,3785.7,0.634]
[1717239835668,2.64144,3785.8,3785.1,7.43]
[1717239835909,2.64144,3785.8,3785.7,0.634]
[1717239836410,2.75318928,3785.8,3785.7,0.634]
[1717239840188,2.75318928,3785.8,3785.0,2.3042]
[1717239840697,2.75318928,3785.8,3785.6,0.634]
[1717239840894,3.02850821,3785.8,3785.6,0.634]
[1717239841927,5.35910821,3785.8,3785.0,2.3042]
[1717239842134,2.64158,3785.6,3784.8,7.43]
[1717239842435,2.64158,3785.6,3785.2,0.634]
[1717239842618,0.11165206,3785.5,3785.2,0.634]
[1717239843210,2.3306,3785.4,3785.2,0.634]
[1717239843411,2.3306,3785.4,3784.8,7.43]
[1717239843586,0.11164049,3785.3,3785.2,0.634]
[1717239844425,0.11164049,3785.3,3784.8,7.43]
[1717239844723,0.11164049,3785.3,3785.0,0.634]
[1717239845400,0.11164049,3785.3,3784.8,7.43]
[1717239845601,0.11164049,3785.3,3785.1,0.634]
[1717239847005,2.57764049,3785.3,3784.5,2.3042]
[1717239847204,2.57764049,3785.3,3785.2,0.634]
[1717239849934,2.57764049,3785.3,3785.0,0.634]
[1717239852418,2.57764049,3785.3,3785.2,0.634]
[1717239854021,0.11164049,3785.3,3785.2,0.634]
[1717239854544,0.11139926,3785.3,3785.2,0.634]
[1717239875342,0.11139926,3785.3,3785.2,2.9253]
[1717239875657,3.0,3785.8,3785.2,2.9253]
[1717239875978,3.0,3785.8,3785.7,0.634]
[1717239876676,3.0,3786.3,3785.7,0.634]
[1717239876875,3.0,3786.3,3786.0,0.634]
[1717239883748,3.0,3786.3,3786.2,0.634]
[1717239889697,3.11164951,3786.3,3786.2,0.634]
[1717239896159,0.11164951,3786.3,3786.2,0.634]
[1717239896363,2.3644,3786.7,3786.2,0.634]
[1717239896594,0.11165223,3786.6,3786.2,0.634]
[1717239900065,2.64097,3786.5,3786.2,0.634]
[1717239900287,3.0,3786.4,3786.2,0.634]
[1717239900614,3.0,3786.4,3784.6,13.296998]
[1717239900615,2.6414,3785.9,3785.2,2.2933]
[1717239900771,2.4123,3785.8,3785.5,0.634]
[1717239900964,2.52401669,3785.8,3785.5,0.634]
[1717239901486,2.64157,3785.7,3785.4,0.634]
[1717239901688,3.0,3785.6,3785.4,0.634]
[1717239901867,3.11171488,3785.6,3785.4,0.634]
[1717239907704,2.64165,3785.5,3784.4,7.43]
[1717239907880,2.64165,3785.5,3785.2,0.634]
[1717239908082,2.64179,3785.3,3785.2,0.634]
[1717239908402,2.7532675,3785.3,3785.2,0.634]
[1717239910502,2.7532675,3785.3,3784.6,2.2732]
[1717239910705,2.7532675,3785.3,3785.2,0.634]
[1717239927217,5.7532675,3785.3,3785.1,0.634]
[1717239927585,3.0,3785.2,3785.1,0.634]
[1717239927784,3.1114603,3785.2,3785.1,0.634]
[1717239931719,3.1114603,3785.2,3784.6,2.2732]
[1717239931720,2.64194,3785.1,3784.6,2.2732]
[1717239932021,2.64194,3785.1,3785.0,0.634]
[1717239932227,5.64194,3785.1,3785.0,0.634]
[1717239934600,5.75337656,3785.1,3785.0,0.634]
[1717239941513,5.75337656,3785.1,3784.6,2.2732]
[1717239941827,5.75337656,3785.1,3784.4,7.43]
[1717239941994,5.75337656,3785.1,3784.8,0.634]
[1717239947614,3.0,3785.0,3784.8,0.634]
[1717239947828,0.11140868,3784.9,3784.8,0.634]
[1717239948138,2.64215,3784.8,3784.3,2.3267]
[1717239948297,2.64215,3784.8,3784.2,0.073858]
[1717239948298,2.2627,3784.7,3784.2,0.073858]
[1717239948497,2.64231,3784.6,3784.2,0.073858]
[1717239948893,0.11118014,3784.5,3784.3,0.634]
[1717239949203,0.11118014,3784.5,3784.4,0.634]
[1717239950629,3.0,3785.0,3784.4,0.634]
[1717239950824,3.0,3785.0,3784.7,0.634]
[1717239958861,2.64207,3784.9,3784.7,0.634]
[1717239959940,2.64207,3784.9,3784.2,0.073858]
[1717239960141,2.64207,3784.9,3784.6,0.634]
[1717239960346,3.432547,3784.9,3784.6,0.634]
[1717239960546,2.64237,3784.5,3784.2,0.707858]
[1717239961345,2.64249,3784.3,3784.2,0.073858]
[1717239961860,5.64249,3784.3,3784.2,0.073858]
[1717239962164,6.496409,3784.3,3784.2,0.073858]
[1717239962336,2.2627,3783.6,3783.1,0.1262387]
[1717239962536,0.05277239,3783.5,3783.1,0.1262387]
[1717239962736,2.2627,3783.6,3783.1,0.1262387]
[1717239962957,0.22627,3783.5,3783.1,0.1262387]
[1717239963262,2.64326,3783.2,3783.1,0.1262387]
[1717239963640,5.64326,3783.2,3783.1,0.1262387]
[1717239964623,5.75337152,3783.2,3783.1,0.1262387]
[1717239979740,0.11011152,3783.2,3783.1,0.1262387]
[1717239980367,3.0,3783.6,3783.1,0.1262387]
[1717239980554,0.11009846,3783.2,3783.1,0.1262387]
[1717239980766,3.0,3783.6,3783.1,0.7602387]
[1717239981078,3.0,3783.6,3783.5,0.634]
[1717239982082,2.64294,3783.7,3783.5,0.634]
[1717239985190,3.0,3784.0,3783.5,0.634]
[1717239985365,3.0,3784.1,3783.9,0.634]
[1717239985584,3.74621443,3784.1,3783.9,0.634]
[1717239987589,3.74621443,3784.1,3783.1,2.5620387]
[1717239987811,3.0,3784.1,3783.8,0.634]
[1717239989076,3.0,3784.1,3784.0,0.634]
[1717239994803,3.11037418,3784.1,3784.0,0.634]
[1717239996108,3.11037418,3784.1,3783.1,10.1995487]
[1717239996275,3.11037418,3784.1,3783.7,0.634]
[1717239996476,0.81098542,3784.0,3783.7,0.634]
[1717239997079,0.11042784,3783.9,3783.7,0.634]
[1717239997477,2.64286,3783.8,3783.1,0.1262387]
[1717239997703,3.0,3783.7,3783.1,0.1262387]
[1717239997899,3.11042603,3783.7,3783.6,0.634]
[1717240000597,3.11042603,3783.7,3783.1,0.1262387]
[1717240000800,3.11042603,3783.7,3783.6,0.634]
[1717240005586,0.11042603,3783.7,3783.6,0.634]
[1717240005921,3.0,3783.7,3783.6,0.634]
[1717240006119,0.11033139,3783.7,3783.6,0.634]
[1717240006620,3.0,3784.2,3783.6,0.634]
[1717240006797,0.11033139,3783.7,3783.4,2.4525]
[1717240006995,3.0,3784.2,3783.6,0.634]
[1717240007201,3.0,3784.2,3784.1,0.634]
[1717240009730,3.1103653,3784.2,3784.1,0.634]
[1717240016906,0.1103653,3784.2,3784.1,0.634]
[1717240017225,3.0,3784.7,3784.1,0.634]
[1717240017422,0.1104436,3784.2,3784.0,2.2913]
[1717240017637,0.1104436,3784.2,3784.1,0.634]
[1717240017811,3.0,3784.7,3784.1,0.634]
[1717240018123,3.0,3784.7,3784.4,0.634]
[1717240018428,0.11044722,3784.6,3784.4,0.634]
[1717240024729,2.92486372,3784.5,3783.4,7.43]
[1717240024908,2.64286,3783.8,3783.6,0.634]
[1717240025108,0.11053367,3783.7,3783.6,0.634]
[1717240025315,2.64286,3783.8,3783.6,0.634]
[1717240025520,3.11050105,3783.7,3783.6,0.634]
[1717240026505,2.64298,3783.6,3783.4,7.43]
[1717240026703,0.11049924,3783.5,3783.4,7.43]
[1717240026906,0.11049924,3783.5,3783.4,8.064]
[1717240028747,0.11049924,3783.5,3783.4,0.634]
[1717240033117,0.11049924,3783.5,3783.1,0.1262387]
[1717240033444,3.11049924,3783.5,3783.4,0.634]
[1717240037421,0.11049924,3783.5,3783.4,0.634]
[1717240037954,0.11029041,3783.5,3783.4,0.634]
[1717240038252,3.0,3784.0,3783.4,0.634]
[1717240038451,0.11029041,3783.5,3783.3,2.3229]
[1717240038633,3.0,3784.0,3783.4,0.634]
[1717240038829,3.799518,3784.0,3783.8,0.634]
[1717240039553,0.11029403,3783.9,3783.8,0.634]
[1717240043163,0.57526372,3784.5,3783.8,0.634]
[1717240043164,2.73229435,3785.7,3784.7,2.64218]
[1717240043320,2.64079,3786.8,3785.6,0.634]
[1717240043525,2.64079,3786.8,3786.0,0.634]
[1717240045631,3.0,3786.7,3786.0,0.634]
[1717240050629,0.09993719,3786.6,3786.0,0.634]
[1717240050932,0.09993719,3786.6,3786.2,0.634]
[1717240051343,0.09993719,3786.6,3786.0,0.634]
[1717240051601,0.57407272,3786.5,3786.0,0.634]
[1717240051934,0.09996979,3786.4,3786.0,0.634]
[1717240056655,0.09996979,3786.4,3786.2,0.634]
[1717240061090,0.09996979,3786.4,3786.0,0.634]
[1717240063097,0.09996979,3786.4,3786.2,0.634]
[1717240063283,0.09996979,3786.4,3786.2,3.0868]
[1717240063489,3.0,3786.7,3786.2,3.0868]
[1717240063686,0.10069166,3786.3,3786.2,2.4528]
[1717240063997,0.10069166,3786.3,3786.2,3.0868]
[1717240064196,3.0,3786.7,3786.2,3.0868]
[1717240064497,3.0,3786.7,3786.5,0.634]
[1717240064693,3.0,3787.2,3786.5,0.634]
[1717240064867,0.80527,3787.1,3786.5,0.634]
[1717240068708,2.6404,3787.3,3787.0,0.634]
[1717240068865,2.6404,3787.3,3786.8,0.634]
[1717240070068,3.0,3787.2,3786.8,0.634]
[1717240070496,0.10099957,3787.1,3786.8,0.634]
[1717240072911,0.10099957,3787.1,3786.2,2.4528]
[1717240073499,0.10099957,3787.1,3786.7,0.634]
[1717240076986,0.10099957,3787.1,3786.6,0.634]
[1717240082215,0.10099957,3787.1,3786.2,2.4528]
[1717240082516,2.64069,3786.9,3786.0,7.43]
[1717240082823,2.64087,3786.7,3786.0,7.43]
[1717240082982,2.64101,3786.5,3786.0,7.43]
[1717240083315,3.10124157,3786.4,3786.0,7.43]
[1717240084511,2.6411,3786.3,3786.0,7.43]
[1717240084878,0.10123977,3786.2,3786.0,7.43]
[1717240085281,2.6411,3786.3,3786.0,7.43]
[1717240085513,0.10123886,3786.1,3786.0,7.43]
[1717240085712,2.6411,3786.3,3786.0,7.43]
[1717240086313,0.10123977,3786.2,3786.0,7.43]
[1717240086682,2.6411,3786.3,3786.0,7.43]
[1717240086884,0.10123886,3786.1,3786.0,7.43]
[1717240087084,2.6411,3786.3,3786.0,7.43]
[1717240087414,3.44785,3786.3,3785.7,0.634]
[1717240087603,0.10123977,3786.2,3785.7,0.634]
[1717240089013,0.10123977,3786.2,3785.4,2.2686]
[1717240089014,2.64124,3786.1,3785.4,2.2686]
[1717240089315,2.64124,3786.1,3785.7,0.634]
[1717240089521,0.10096672,3786.0,3785.7,0.634]
[1717240094289,0.10096672,3786.0,3785.1,9.8171]
[1717240094490,0.10096672,3786.0,3785.7,0.634]
[1717240094691,2.55406672,3786.0,3785.1,9.8171]
[1717240094917,2.55406672,3786.0,3785.5,0.634]
[1717240096190,2.64141,3785.9,3785.5,0.634]
[1717240096661,0.10095185,3785.8,3785.5,0.634]
[1717240109920,0.10095185,3785.8,3785.7,0.634]
[1717240112657,0.10095185,3785.8,3785.7,3.1118]
[1717240112956,5.64108,3786.4,3785.7,3.42298]
[1717240113162,0.1007852,3785.8,3785.7,2.4778]
[1717240113471,5.64108,3786.4,3785.7,3.1118]
[1717240113628,5.64108,3786.4,3786.1,0.634]
[1717240114658,0.10078972,3786.3,3786.1,0.634]
[1717240120768,0.10078972,3786.3,3785.8,0.634]
[1717240123266,0.10078972,3786.3,3786.0,0.634]
[1717240126592,0.10078972,3786.3,3785.4,2.4778]
[1717240126878,0.10078972,3786.3,3785.9,0.634]
[1717240127045,2.64117,3786.2,3785.9,0.634]
[1717240127453,0.10094478,3786.1,3785.9,0.634]
[1717240136175,0.10094478,3786.1,3784.7,2.774]
[1717240136176,2.64191,3785.2,3784.7,2.4427]
[1717240136377,2.64191,3785.2,3784.8,0.634]
[1717240136586,2.64191,3785.2,3785.0,0.634]
[1717240136939,0.1004392,3785.1,3785.0,0.634]
[1717240146928,0.1004392,3785.1,3784.7,2.4427]
[1717240147209,0.1004392,3785.1,3785.0,0.634]
[1717240159059,0.1004392,3785.1,3785.0,2.9746]
[1717240159259,2.64156,3785.7,3785.0,3.27206]
[1717240159481,2.64156,3785.7,3785.6,0.634]
[1717240159688,2.64156,3785.7,3785.4,0.634]
[1717240164810,5.0065,3786.2,3785.0,2.63806]
[1717240165007,3.0,3786.1,3785.8,0.634]
[1717240165188,0.09727408,3786.1,3785.8,0.634]
[1717240166679,0.09727408,3786.1,3786.0,0.634]
[1717240168691,2.3653,3786.5,3786.0,0.634]
[1717240168892,0.09742461,3786.1,3786.0,0.634]
[1717240169089,2.3653,3786.5,3786.0,0.634]
[1717240169289,0.09742496,3786.1,3786.0,0.634]
[1717240169491,2.3653,3786.5,3786.0,0.634]
[1717240169802,0.0971873,3786.1,3786.0,0.634]
[1717240169986,2.3653,3786.5,3786.0,0.634]
[1717240170676,0.09718691,3786.4,3786.0,0.634]
[1717240173918,0.09718691,3786.4,3786.2,0.634]
[1717240177132,3.0,3786.6,3786.2,0.634]
[1717240177428,0.09735459,3786.3,3786.2,0.634]
[1717240177787,3.0,3786.6,3786.2,0.634]
[1717240178026,0.09735459,3786.3,3786.2,0.634]
[1717240178510,3.0,3786.6,3786.2,0.634]
[1717240178686,0.09735459,3786.3,3786.2,0.634]
[1717240178893,3.0,3786.6,3786.2,0.634]
[1717240179093,0.09735459,3786.3,3786.2,0.634]
[1717240179293,3.0,3786.6,3786.2,0.634]
[1717240179493,0.09735459,3786.3,3786.2,0.634]
[1717240179834,3.0,3786.6,3786.2,0.634]
[1717240179999,0.09735459,3786.3,3786.2,0.634]
[1717240180198,3.0,3786.6,3786.2,0.634]
[1717240180422,0.09735459,3786.3,3786.2,0.634]
[1717240180634,3.0,3786.6,3786.2,0.634]
[1717240180794,0.09735459,3786.3,3786.2,0.634]
[1717240180999,3.0,3786.6,3786.2,0.634]
[1717240181200,0.09735459,3786.3,3786.2,0.634]
[1717240181402,3.0,3786.6,3786.2,0.634]
[1717240181635,0.09735459,3786.3,3786.2,0.634]
[1717240181837,3.0,3786.6,3786.2,0.634]
[1717240182000,0.09735459,3786.3,3786.2,0.634]
[1717240182331,0.09737425,3786.3,3786.2,0.634]
[1717240182635,3.0,3786.6,3786.2,0.634]
[1717240183097,0.09737606,3786.5,3786.2,0.634]
[1717240184932,0.09737606,3786.5,3786.4,0.634]
[1717240185517,0.09737606,3786.5,3786.3,0.634]
[1717240189212,0.09737606,3786.5,3785.4,0.50307913]
[1717240189404,0.09737606,3786.5,3786.1,0.634]
[1717240189935,0.09747674,3786.4,3786.1,0.634]
[1717240190139,2.64085,3786.7,3786.1,0.634]
[1717240190316,0.09747584,3786.3,3786.1,0.634]
[1717240190634,2.64085,3786.7,3786.1,0.634]
[1717240191155,0.09747855,3786.6,3786.3,0.634]
[1717240213895,0.09747855,3786.6,3785.4,0.50307913]
[1717240213896,2.64114,3786.3,3785.4,0.50307913]
[1717240214097,2.2952,3786.2,3786.0,0.634]
[1717240214404,2.3926913,3786.2,3786.0,0.634]
[1717240215383,2.64124,3786.1,3785.4,0.50307913]
[1717240215594,2.64124,3786.1,3785.8,0.634]
[1717240215595,2.7387304,3786.1,3785.8,0.634]
[1717240217488,2.7387304,3786.1,3785.6,0.634]
[1717240218289,2.7387304,3786.1,3785.2,9.8473]
[1717240218593,2.7387304,3786.1,3785.7,0.634]
[1717240218795,2.7387304,3786.1,3785.2,2.4173]
[1717240219095,2.7387304,3786.1,3785.6,0.634]
[1717240220194,2.7387304,3786.1,3785.3,0.24173]
[1717240220361,2.7387304,3786.1,3785.7,0.634]
[1717240223405,2.7387304,3786.1,3785.9,0.634]
[1717240224701,0.0974904,3786.1,3785.9,0.634]
[1717240224902,0.0974904,3786.1,3786.0,0.30513]
[1717240225084,5.64092,3786.6,3786.0,0.30513]
[1717240225278,0.09714961,3786.1,3786.0,0.30513]
[1717240225481,5.64092,3786.6,3786.0,0.93913]
[1717240225686,5.64092,3786.6,3786.0,0.30513]
[1717240225875,5.64092,3786.6,3786.2,0.634]
[1717240226215,0.09724169,3786.5,3786.2,0.634]
[1717240229416,0.09724169,3786.5,3786.4,0.634]
[1717240236318,3.0,3787.0,3786.4,0.93449]
[1717240236516,0.09727151,3786.9,3786.6,0.634]
[1717240237890,2.64058,3787.1,3786.6,0.634]
[1717240238109,0.09727241,3787.0,3786.6,0.634]
[1717240241630,0.09727241,3787.0,3786.8,0.634]
[1717240246506,0.09727241,3787.0,3786.3,2.3709]
[1717240246704,0.09727241,3787.0,3786.9,0.634]
[1717240252318,2.64023,3787.6,3786.9,0.634]
[1717240252663,2.64023,3787.6,3787.3,0.634]
[1717240252664,0.09448371,3787.5,3787.3,0.634]
[1717240257823,0.04448371,3787.5,3787.3,0.634]
[1717240258161,0.09287511,3787.5,3787.3,0.634]
[1717240266334,0.0681433,3787.5,3787.3,0.634]
[1717240270566,0.0681433,3787.5,3787.3,0.93957]
[1717240271176,0.05019881,3787.5,3787.3,0.93957]
[1717240274571,0.05019881,3787.5,3787.3,0.30557]
[1717240274787,0.05019881,3787.5,3787.2,0.634]